fUSD/lending_fUSD_20260611
["ID","MTS","AMOUNT","RATE_DAILY","PERIOD"]
[424824002,1781184642000,-151.0,0.00018636,2]
[424823999,1781184642000,-151.0,0.00018636,2]
[424823992,1781184642000,-500.0,0.00018636,2]
[424823988,1781184642000,-151.0,0.00018636,2]
[424823990,1781184642000,-151.0,0.00018636,2]
[424823991,1781184642000,-151.0,0.00018636,2]
[424823998,1781184642000,-500.0,0.00018636,2]
[424823987,1781184642000,-151.0,0.00018636,2]
[424823983,1781184642000,-151.0,0.00018636,2]
[424823981,1781184642000,-151.0,0.00018636,2]
[424823982,1781184642000,-151.0,0.00018636,2]
[424823986,1781184642000,-500.0,0.00018636,2]
[424823985,1781184642000,-151.0,0.00018636,2]
[424823984,1781184642000,-151.0,0.00018636,2]
[424823980,1781184642000,-2005.9555727,0.00018636,2]
[424824003,1781184642000,-151.0,0.00018636,2]
[424823989,1781184642000,-500.0,0.00018636,2]
[424824007,1781184642000,-151.0,0.00018636,2]
[424824032,1781184642000,-254888.62271603,0.00019,2]
[424824008,1781184642000,-151.0,0.00018636,2]
[424824010,1781184642000,-151.0,0.00018636,2]
[424824036,1781184642000,-309.57677898,0.00019,2]
[424824034,1781184642000,-580.23789574,0.00019,2]
[424824035,1781184642000,-475.66984602,0.00019,2]
[424824030,1781184642000,-500.0,0.00018999,2]
[424824029,1781184642000,-526.0,0.00018904,2]
[424824033,1781184642000,-1275.76171804,0.00019,2]
[424824025,1781184642000,-277.56322829,0.00018801,2]
[424824027,1781184642000,-500.0,0.00018856,2]
[424824028,1781184642000,-10057.54024639,0.000189,2]
[424824031,1781184642000,-10057.54024639,0.00019,2]
[424824026,1781184642000,-500.0,0.00018856,2]
[424824024,1781184642000,-171.82249908,0.00018757,2]
[424824037,1781184642000,-312.87856827,0.00019,2]
[424824018,1781184642000,-500.0,0.00018636,2]
[424824005,1781184642000,-151.0,0.00018636,2]
[424824016,1781184642000,-151.0,0.00018636,2]
[424824021,1781184642000,-151.0,0.00018636,2]
[424824017,1781184642000,-151.0,0.00018636,2]
[424824020,1781184642000,-151.0,0.00018636,2]
[424824014,1781184642000,-151.0,0.00018636,2]
[424824022,1781184642000,-546.7324081,0.000187,2]
[424824011,1781184642000,-151.0,0.00018636,2]
[424824019,1781184642000,-151.0,0.00018636,2]
[424824012,1781184642000,-500.0,0.00018636,2]
[424824013,1781184642000,-151.0,0.00018636,2]
[424824023,1781184642000,-10057.54024639,0.000187,2]
[424824015,1781184642000,-500.0,0.00018636,2]
[424824038,1781184643000,-993.28950474,0.00019,2]
[424824063,1781184646000,-7866.32012862,0.00019,2]
[424824062,1781184646000,-229.774379,0.00015069,2]
[424824082,1781185305000,-160.29472768,8.428e-05,2]
[424824081,1781185305000,-302.812,8.428e-05,2]
[424824080,1781185305000,-5149.323,8.428e-05,2]
[424824083,1781185305000,-150.0,8.456e-05,2]
[424824085,1781185305000,-250.0,8.484e-05,2]
[424824086,1781185305000,-500.0,8.484e-05,2]
[424824087,1781185305000,-160.29472766,8.49e-05,2]
[424824084,1781185305000,-2284.26162809,8.484e-05,2]
[424824093,1781185330000,-500.0,8.54e-05,2]
[424824092,1781185330000,-500.0,8.54e-05,2]
[424824091,1781185330000,-500.0,8.54e-05,2]
[424824089,1781185330000,-500.0,8.52e-05,2]
[424824090,1781185330000,-563.0872287,8.52e-05,2]
[424824088,1781185330000,-250.0,8.52e-05,2]
[424824100,1781185331000,-500.0,8.54e-05,2]
[424824101,1781185331000,-500.0,8.54e-05,2]
[424824099,1781185331000,-500.0,8.54e-05,2]
[424824094,1781185331000,-500.0,8.54e-05,2]
[424824098,1781185331000,-500.0,8.54e-05,2]
[424824095,1781185331000,-500.0,8.54e-05,2]
[424824096,1781185331000,-500.0,8.54e-05,2]
[424824097,1781185331000,-500.0,8.54e-05,2]
[424824102,1781185331000,-200.0,8.54e-05,2]
[424824104,1781185331000,-500.0,8.54e-05,2]
[424824105,1781185331000,-500.0,8.54e-05,2]
[424824107,1781185331000,-178.85188452,8.54e-05,2]
[424824106,1781185331000,-309.55282872,8.54e-05,2]
[424824109,1781185331000,-320.14088781,8.54e-05,2]
[424824108,1781185331000,-500.0,8.54e-05,2]
[424824111,1781185331000,-500.0,8.54e-05,2]
[424824110,1781185331000,-500.0,8.54e-05,2]
[424824113,1781185331000,-4678.36717025,8.541e-05,2]
[424824112,1781185331000,-500.0,8.54e-05,2]
[424824103,1781185331000,-500.0,8.54e-05,2]
[424824118,1781185615000,-448.63033822,8.42e-05,2]
[424824124,1781185831000,-150.0,8.424e-05,2]
[424824123,1781185831000,-2370.89880922,8.422e-05,2]
[424824122,1781185831000,-51.36966178,8.42e-05,2]
[424824125,1781185831000,-500.72576693,8.428e-05,2]
[424824127,1781185831000,-242.25,8.428e-05,2]
[424824134,1781185831000,-150.0,8.589e-05,2]
[424824130,1781185831000,-1000.0,8.54e-05,2]
[424824129,1781185831000,-150.0,8.505e-05,2]
[424824126,1781185831000,-4119.458,8.428e-05,2]
[424824131,1781185831000,-170.52227,8.54e-05,2]
[424824133,1781185831000,-215.95576085,8.579e-05,2]
[424824132,1781185831000,-160.0,8.579e-05,2]
[424824135,1781185831000,-299.99,8.589e-05,2]
[424824138,1781185831000,-1254.41808677,8.599e-05,2]
[424824140,1781185831000,-1063.57377001,8.599e-05,2]
[424824139,1781185831000,-2010.62519507,8.599e-05,2]
[424824136,1781185831000,-150.0,8.599e-05,2]
[424824141,1781185831000,-4211.9543992,8.599e-05,2]
[424824137,1781185831000,-959.61409317,8.599e-05,2]
[424824128,1781185831000,-160.29472766,8.428e-05,2]
[424824152,1781185833000,-574.81083747,8.599e-05,2]
[424824148,1781185833000,-499.80445578,8.599e-05,2]
[424824149,1781185833000,-150.99,8.599e-05,2]
[424824151,1781185833000,-2047.47837893,8.599e-05,2]
[424824153,1781185833000,-388.8323745,8.599e-05,2]
[424824150,1781185833000,-9880.27,8.599e-05,2]
[424824155,1781185833000,-1452.23034867,8.599e-05,2]
[424824156,1781185833000,-110.98058714,8.599e-05,2]
[424824154,1781185833000,-458.44747329,8.599e-05,2]
[424824159,1781185833000,-556.399995,8.7e-05,2]
[424824160,1781185833000,-17379.55028735,8.7e-05,2]
[424824158,1781185833000,-162.94941286,8.7e-05,2]
[424824157,1781185833000,-150.0,8.673e-05,2]
[424824164,1781185837000,-4478.62348819,8.7e-05,2]
[424824191,1781185840000,-2904.59102342,8.7e-05,2]
[424824202,1781185843000,-392.81008536,8.7e-05,2]
[424824201,1781185843000,-1315.06924629,8.7e-05,2]
[424824232,1781185846000,-856.10000006,8.7e-05,2]
[424824280,1781186907000,-150.0,7.488e-05,2]
[424824279,1781186907000,-172.44,7.131e-05,2]
[424824284,1781186907000,-240.0,7.789e-05,2]
[424824282,1781186907000,-150.0,7.639e-05,2]
[424824283,1781186907000,-150.0,7.714e-05,2]
[424824281,1781186907000,-150.0,7.564e-05,2]
[424824286,1781186907000,-250.0,7.844e-05,2]
[424824287,1781186907000,-250.0,7.844e-05,2]
[424824288,1781186907000,-250.0,7.844e-05,2]
[424824290,1781186907000,-374.86282914,7.945e-05,2]
[424824289,1781186907000,-924.3,7.929e-05,2]
[424824291,1781186907000,-3254.60282914,7.945e-05,2]
[424824285,1781186907000,-193.0,7.844e-05,2]
[424824292,1781186908000,-1578.71359734,7.945e-05,2]
[424824293,1781186932000,-3416.36121425,7.945e-05,2]
[424824294,1781186958000,-349.17826962,7.892e-05,2]
[424824322,1781187032000,-150.99,8.436e-05,2]
[424824326,1781187032000,-435.77,8.436e-05,2]
[424824310,1781187032000,-650.82173038,7.892e-05,2]
[424824320,1781187032000,-215.95576085,8.436e-05,2]
[424824314,1781187032000,-200.0,7.962e-05,2]
[424824321,1781187032000,-299.99,8.436e-05,2]
[424824311,1781187032000,-150.0,7.918e-05,2]
[424824312,1781187032000,-300.0,7.944e-05,2]
[424824316,1781187032000,-164.0,8.103e-05,2]
[424824319,1781187032000,-14405.8755,8.299e-05,2]
[424824313,1781187032000,-20834.66944613,7.945e-05,2]
[424824318,1781187032000,-2395.09,8.219e-05,2]
[424824315,1781187032000,-150.0,8.024e-05,2]
[424824317,1781187032000,-2000.0,8.219e-05,2]
[424824323,1781187032000,-4909.51,8.436e-05,2]
[424824325,1781187032000,-9999.99,8.436e-05,2]
[424824336,1781187032000,-1000.0,8.54e-05,2]
[424824324,1781187032000,-2397.64,8.436e-05,2]
[424824327,1781187032000,-150.0,8.513e-05,2]
[424824343,1781187032000,-13649.51108789,8.614e-05,2]
[424824342,1781187032000,-91643.12738169,8.614e-05,2]
[424824341,1781187032000,-5483.7026232,8.614e-05,2]
[424824337,1781187032000,-829.47773,8.54e-05,2]
[424824338,1781187032000,-3613.44808247,8.556e-05,2]
[424824340,1781187032000,-257.399355,8.614e-05,2]
[424824339,1781187032000,-5000.0,8.566e-05,2]
[424824334,1781187032000,-6821.7941,8.514e-05,2]
[424824335,1781187032000,-2500.0,8.514e-05,2]
[424824331,1781187032000,-999.99,8.513e-05,2]
[424824332,1781187032000,-2206.4793,8.514e-05,2]
[424824328,1781187032000,-17339.07266461,8.513e-05,2]
[424824330,1781187032000,-499.99,8.513e-05,2]
[424824329,1781187032000,-2660.91733539,8.513e-05,2]
[424824333,1781187032000,-20694.6237,8.514e-05,2]
[424824359,1781187033000,-450.0,8.614e-05,2]
[424824344,1781187033000,-32721.43766049,8.614e-05,2]
[424824357,1781187033000,-662.2602,8.614e-05,2]
[424824356,1781187033000,-436.58949995,8.614e-05,2]
[424824358,1781187033000,-693.04329282,8.614e-05,2]
[424824361,1781187033000,-972.8454993,8.614e-05,2]
[424824363,1781187033000,-1636.27833148,8.614e-05,2]
[424824362,1781187033000,-13978.86332071,8.614e-05,2]
[424824364,1781187033000,-1243.66173485,8.614e-05,2]
[424824365,1781187033000,-868.52832,8.614e-05,2]
[424824366,1781187033000,-343.29292514,8.614e-05,2]
[424824360,1781187033000,-4106.42410174,8.614e-05,2]
[424824385,1781187038000,-924.3,8.92e-05,2]
[424824384,1781187038000,-400.0,8.9e-05,3]
[424824397,1781187038000,-299.9123001,9.366e-05,2]
[424824387,1781187038000,-14643.65,8.998e-05,2]
[424824386,1781187038000,-467.21,8.998e-05,2]
[424824391,1781187038000,-167.79416877,9.105e-05,2]
[424824392,1781187038000,-500.0,9.15e-05,2]
[424824390,1781187038000,-356.65,9.029e-05,2]
[424824389,1781187038000,-600.0,9e-05,3]
[424824393,1781187038000,-150.0,9.15e-05,2]
[424824396,1781187038000,-255.0,9.364e-05,2]
[424824394,1781187038000,-2000.0,9.247e-05,2]
[424824395,1781187038000,-675.7,9.251e-05,2]
[424824388,1781187038000,-2700.0,9e-05,3]
[424824374,1781187038000,-500.0,8.691e-05,2]
[424824367,1781187038000,-2062.99,8.299e-05,2]
[424824379,1781187038000,-900.0,8.8e-05,3]
[424824375,1781187038000,-500.0,8.738e-05,2]
[424824373,1781187038000,-151.0,8.691e-05,2]
[424824382,1781187038000,-1800.0,8.9e-05,3]
[424824376,1781187038000,-500.0,8.738e-05,2]
[424824378,1781187038000,-4000.0,8.74e-05,2]
[424824377,1781187038000,-500.0,8.738e-05,2]
[424824381,1781187038000,-195.95,8.802e-05,2]
[424824372,1781187038000,-20125.4480799,8.614e-05,2]
[424824371,1781187038000,-331020.56784324,8.614e-05,2]
[424824369,1781187038000,-30006.36523426,8.299e-05,2]
[424824370,1781187038000,-160.0,8.438e-05,2]
[424824368,1781187038000,-2239.23986574,8.299e-05,2]
[424824398,1781187038000,-500.0,9.424e-05,2]
[424824380,1781187038000,-200.0,8.8e-05,3]
[424824399,1781187038000,-500.0,9.698e-05,2]
[424824415,1781187038000,-500.0,0.00010299,2]
[424824402,1781187038000,-499.91257005,0.0001,2]
[424824403,1781187038000,-429.70335277,0.0001,2]
[424824434,1781187038000,-500.0,0.00010958,2]
[424824431,1781187038000,-500.0,0.00010958,2]
[424824426,1781187038000,-800.0,0.000109,3]
[424824432,1781187038000,-500.0,0.00010958,2]
[424824429,1781187038000,-500.0,0.00010958,2]
[424824430,1781187038000,-500.0,0.00010958,2]
[424824428,1781187038000,-500.0,0.00010958,2]
[424824427,1781187038000,-924.3,0.00010902,2]
[424824425,1781187038000,-3600.0,0.000109,3]
[424824420,1781187038000,-433.0,0.00010301,2]
[424824418,1781187038000,-500.0,0.00010299,2]
[424824419,1781187038000,-146190.74865057,0.000103,2]
[424824421,1781187038000,-675.7,0.00010407,2]
[424824417,1781187038000,-500.0,0.00010299,2]
[424824435,1781187038000,-500.0,0.00010958,2]
[424824413,1781187038000,-450.0,0.00010299,2]
[424824433,1781187038000,-500.0,0.00010958,2]
[424824401,1781187038000,-500.0,9.972e-05,2]
[424824404,1781187038000,-1200.0,0.00010027,2]
[424824407,1781187038000,-500.0,0.00010299,2]
[424824409,1781187038000,-500.0,0.00010299,2]
[424824405,1781187038000,-2000.0,0.00010274,2]
[424824408,1781187038000,-500.0,0.00010299,2]
[424824400,1781187038000,-924.3,9.911e-05,2]
[424824410,1781187038000,-500.0,0.00010299,2]
[424824412,1781187038000,-500.0,0.00010299,2]
[424824422,1781187038000,-1200.0,0.00010529,2]
[424824424,1781187038000,-2000.0,0.000108,2]
[424824411,1781187038000,-500.0,0.00010299,2]
[424824406,1781187038000,-1200.0,0.00010278,2]
[424824423,1781187038000,-1200.0,0.00010779,2]
[424824473,1781187039000,-500.0,0.00012346,2]
[424824477,1781187039000,-494426.4311993,0.00012347,2]
[424824471,1781187039000,-270.25952719,0.00012329,2]
[424824472,1781187039000,-500.0,0.00012345,2]
[424824468,1781187039000,-5530.0,0.000123,5]
[424824469,1781187039000,-327.15,0.00012329,2]
[424824466,1781187039000,-2911.38245139,0.00012062,2]
[424824467,1781187039000,-188.884214,0.000121,2]
[424824483,1781187039000,-10582.891964,0.00012771,2]
[424824464,1781187039000,-429.70335275,0.00012024,2]
[424824470,1781187039000,-2000.0,0.00012329,2]
[424824484,1781187039000,-2911.38245139,0.00012771,2]
[424824486,1781187039000,-238.945269,0.00012814,2]
[424824474,1781187039000,-500.0,0.00012346,2]
[424824478,1781187039000,-20125.4480799,0.00012347,2]
[424824476,1781187039000,-5483.7026232,0.00012347,2]
[424824475,1781187039000,-257.399355,0.00012347,2]
[424824482,1781187039000,-675.7,0.0001272,2]
[424824481,1781187039000,-2878.04,0.0001252,2]
[424824485,1781187039000,-377.302723,0.00012814,2]
[424824488,1781187039000,-283.422116,0.00012878,2]
[424824487,1781187039000,-243.483558,0.00012814,2]
[424824489,1781187039000,-199.5,0.00012918,2]
[424824490,1781187039000,-9505.55867144,0.00012924,2]
[424824465,1781187039000,-10582.891964,0.00012062,2]
[424824479,1781187039000,-1252.0,0.00012463,2]
[424824463,1781187039000,-924.3,0.00011893,2]
[424824440,1781187039000,-1139.2058849,0.00011,2]
[424824461,1781187039000,-675.7,0.00011563,2]
[424824436,1781187039000,-500.0,0.00010958,2]
[424824437,1781187039000,-500.0,0.00010958,2]
[424824443,1781187039000,-166.66,0.00011068,2]
[424824444,1781187039000,-2911.38245148,0.00011099,2]
[424824448,1781187039000,-10582.89196404,0.00011099,2]
[424824447,1781187039000,-2911.38245139,0.00011099,2]
[424824446,1781187039000,-2911.38245139,0.00011099,2]
[424824445,1781187039000,-2911.38245139,0.00011099,2]
[424824438,1781187039000,-166.66,0.00010959,2]
[424824439,1781187039000,-150.0,0.00010989,2]
[424824441,1781187039000,-69774.0,0.00011,2]
[424824491,1781187039000,-166.66,0.00012931,2]
[424824442,1781187039000,-1200.0,0.0001103,2]
[424824451,1781187039000,-10582.891964,0.00011099,2]
[424824450,1781187039000,-10582.891964,0.00011099,2]
[424824449,1781187039000,-10582.891964,0.00011099,2]
[424824452,1781187039000,-166.66,0.00011178,2]
[424824453,1781187039000,-500.0,0.0001126,2]
[424824454,1781187039000,-166.66,0.00011288,2]
[424824455,1781187039000,-2000.0,0.00011301,2]
[424824458,1781187039000,-2911.38245139,0.00011352,2]
[424824457,1781187039000,-10582.891964,0.00011352,2]
[424824459,1781187039000,-166.66,0.00011397,2]
[424824456,1781187039000,-736.0,0.00011331,2]
[424824460,1781187039000,-166.66,0.00011507,2]
[424824462,1781187039000,-5530.0,0.000116,3]
[424824493,1781187039000,-500.0,0.00013288,2]
[424824480,1781187039000,-166.66,0.00012518,2]
[424824494,1781187039000,-160.0,0.00013343,2]
[424824520,1781187039000,-150.0,0.00013488,2]
[424824523,1781187039000,-150.0,0.00013516,2]
[424824521,1781187039000,-1000.0,0.000135,2]
[424824525,1781187039000,-150.0,0.00013572,2]
[424824519,1781187039000,-150.0,0.00013488,2]
[424824522,1781187039000,-8680.2563,0.000135,2]
[424824530,1781187039000,-150.0,0.00013624,2]
[424824532,1781187039000,-150.0,0.00013629,2]
[424824533,1781187039000,-150.0,0.00013657,2]
[424824531,1781187039000,-150.0,0.00013624,2]
[424824535,1781187039000,-1500.0,0.00013682,2]
[424824536,1781187039000,-150.0,0.00013686,2]
[424824527,1781187039000,-270.25952719,0.00013597,2]
[424824540,1781187039000,-500.0,0.00013698,2]
[424824541,1781187039000,-500.0,0.00013698,2]
[424824534,1781187039000,-63464.0,0.00013671,2]
[424824537,1781187039000,-150.0,0.00013687,2]
[424824539,1781187039000,-500.0,0.00013698,2]
[424824543,1781187039000,-500.0,0.00013698,2]
[424824542,1781187039000,-500.0,0.00013698,2]
[424824544,1781187039000,-362.50237529,0.00013698,2]
[424824545,1781187039000,-500.0,0.00013698,2]
[424824492,1781187039000,-219.866853,0.00013211,2]
[424824547,1781187039000,-500.0,0.00013698,2]
[424824549,1781187039000,-500.0,0.00013698,2]
[424824548,1781187039000,-500.0,0.00013698,2]
[424824538,1781187039000,-500.0,0.00013697,2]
[424824526,1781187039000,-150.0,0.00013588,2]
[424824546,1781187039000,-500.0,0.00013698,2]
[424824528,1781187039000,-150.0,0.00013601,2]
[424824529,1781187039000,-150.0,0.00013613,2]
[424824504,1781187039000,-500.0,0.00013425,3]
[424824503,1781187039000,-184.85073511,0.00013425,3]
[424824506,1781187039000,-150.0,0.00013425,2]
[424824505,1781187039000,-283.99832687,0.00013425,3]
[424824495,1781187039000,-266.267137,0.00013343,2]
[424824497,1781187039000,-166.66,0.00013345,2]
[424824496,1781187039000,-372.534275,0.00013343,2]
[424824500,1781187039000,-150.0,0.00013425,3]
[424824501,1781187039000,-166.61154973,0.00013425,3]
[424824498,1781187039000,-150.0,0.00013425,3]
[424824499,1781187039000,-150.0,0.00013425,3]
[424824502,1781187039000,-500.0,0.00013425,3]
[424824508,1781187039000,-298.39940099,0.00013425,2]
[424824507,1781187039000,-150.0,0.00013425,2]
[424824513,1781187039000,-225.43309031,0.00013488,2]
[424824516,1781187039000,-150.0,0.00013488,2]
[424824512,1781187039000,-257.36274764,0.00013488,2]
[424824517,1781187039000,-150.0,0.00013488,2]
[424824514,1781187039000,-150.0,0.00013488,2]
[424824524,1781187039000,-150.0,0.00013544,2]
[424824511,1781187039000,-10582.891964,0.00013481,2]
[424824509,1781187039000,-171.501238,0.00013455,2]
[424824510,1781187039000,-152.0,0.00013463,2]
[424824518,1781187039000,-150.0,0.00013488,2]
[424824515,1781187039000,-150.0,0.00013488,2]
[424824577,1781187040000,-853.37,0.00013698,2]
[424824589,1781187040000,-500.0,0.00013698,2]
[424824580,1781187040000,-853.37,0.00013698,2]
[424824579,1781187040000,-853.37,0.00013698,2]
[424824582,1781187040000,-853.37,0.00013698,2]
[424824583,1781187040000,-500.0,0.00013698,2]
[424824581,1781187040000,-853.37,0.00013698,2]
[424824584,1781187040000,-500.0,0.00013698,2]
[424824587,1781187040000,-500.0,0.00013698,2]
[424824578,1781187040000,-853.37,0.00013698,2]
[424824593,1781187040000,-500.0,0.00013698,2]
[424824588,1781187040000,-500.0,0.00013698,2]
[424824586,1781187040000,-500.0,0.00013698,2]
[424824590,1781187040000,-500.0,0.00013698,2]
[424824591,1781187040000,-500.0,0.00013698,2]
[424824592,1781187040000,-500.0,0.00013698,2]
[424824595,1781187040000,-500.0,0.00013698,2]
[424824594,1781187040000,-500.0,0.00013698,2]
[424824596,1781187040000,-628.72,0.00013698,2]
[424824597,1781187040000,-628.72,0.00013698,2]
[424824574,1781187040000,-853.37,0.00013698,2]
[424824600,1781187040000,-628.72,0.00013698,2]
[424824585,1781187040000,-500.0,0.00013698,2]
[424824573,1781187040000,-853.37,0.00013698,2]
[424824566,1781187040000,-626.62,0.00013698,2]
[424824575,1781187040000,-853.37,0.00013698,2]
[424824598,1781187040000,-628.72,0.00013698,2]
[424824552,1781187040000,-500.0,0.00013698,2]
[424824551,1781187040000,-518.7161452,0.00013698,2]
[424824550,1781187040000,-500.0,0.00013698,2]
[424824553,1781187040000,-500.0,0.00013698,2]
[424824555,1781187040000,-500.0,0.00013698,2]
[424824556,1781187040000,-626.62,0.00013698,2]
[424824557,1781187040000,-626.62,0.00013698,2]
[424824554,1781187040000,-500.0,0.00013698,2]
[424824558,1781187040000,-626.62,0.00013698,2]
[424824569,1781187040000,-626.62,0.00013698,2]
[424824560,1781187040000,-626.62,0.00013698,2]
[424824563,1781187040000,-626.62,0.00013698,2]
[424824565,1781187040000,-626.62,0.00013698,2]
[424824568,1781187040000,-626.62,0.00013698,2]
[424824562,1781187040000,-626.62,0.00013698,2]
[424824564,1781187040000,-626.62,0.00013698,2]
[424824567,1781187040000,-626.62,0.00013698,2]
[424824570,1781187040000,-853.37,0.00013698,2]
[424824571,1781187040000,-853.37,0.00013698,2]
[424824572,1781187040000,-853.37,0.00013698,2]
[424824576,1781187040000,-853.37,0.00013698,2]
[424824561,1781187040000,-626.62,0.00013698,2]
[424824599,1781187040000,-628.72,0.00013698,2]
[424824649,1781187040000,-540.38,0.00013698,2]
[424824607,1781187040000,-1734.13,0.00013698,2]
[424824627,1781187040000,-500.0,0.00013698,2]
[424824626,1781187040000,-500.0,0.00013698,2]
[424824631,1781187040000,-500.0,0.00013698,2]
[424824632,1781187040000,-500.0,0.00013698,2]
[424824633,1781187040000,-500.0,0.00013698,2]
[424824634,1781187040000,-500.0,0.00013698,2]
[424824636,1781187040000,-500.0,0.00013698,2]
[424824637,1781187040000,-540.38,0.00013698,2]
[424824635,1781187040000,-540.38,0.00013698,2]
[424824639,1781187040000,-500.0,0.00013698,2]
[424824628,1781187040000,-500.0,0.00013698,2]
[424824642,1781187040000,-540.38,0.00013698,2]
[424824641,1781187040000,-500.0,0.00013698,2]
[424824640,1781187040000,-540.38,0.00013698,2]
[424824644,1781187040000,-540.38,0.00013698,2]
[424824647,1781187040000,-500.0,0.00013698,2]
[424824646,1781187040000,-540.38,0.00013698,2]
[424824651,1781187040000,-500.0,0.00013698,2]
[424824650,1781187040000,-500.0,0.00013698,2]
[424824648,1781187040000,-500.0,0.00013698,2]
[424824645,1781187040000,-500.0,0.00013698,2]
[424824601,1781187040000,-628.72,0.00013698,2]
[424824643,1781187040000,-500.0,0.00013698,2]
[424824629,1781187040000,-500.0,0.00013698,2]
[424824638,1781187040000,-540.38,0.00013698,2]
[424824625,1781187040000,-505.06369684,0.00013698,2]
[424824609,1781187040000,-1734.13,0.00013698,2]
[424824630,1781187040000,-500.0,0.00013698,2]
[424824610,1781187040000,-500.0,0.00013698,2]
[424824611,1781187040000,-500.0,0.00013698,2]
[424824602,1781187040000,-628.72,0.00013698,2]
[424824605,1781187040000,-1734.13,0.00013698,2]
[424824603,1781187040000,-1734.13,0.00013698,2]
[424824604,1781187040000,-1734.13,0.00013698,2]
[424824606,1781187040000,-1734.13,0.00013698,2]
[424824614,1781187040000,-500.0,0.00013698,2]
[424824612,1781187040000,-500.0,0.00013698,2]
[424824608,1781187040000,-1734.13,0.00013698,2]
[424824624,1781187040000,-500.0,0.00013698,2]
[424824621,1781187040000,-500.0,0.00013698,2]
[424824615,1781187040000,-500.0,0.00013698,2]
[424824617,1781187040000,-500.0,0.00013698,2]
[424824613,1781187040000,-500.0,0.00013698,2]
[424824616,1781187040000,-500.0,0.00013698,2]
[424824618,1781187040000,-500.0,0.00013698,2]
[424824619,1781187040000,-500.0,0.00013698,2]
[424824620,1781187040000,-549.73497953,0.00013698,2]
[424824623,1781187040000,-500.0,0.00013698,2]
[424824622,1781187040000,-500.0,0.00013698,2]
[424824695,1781187041000,-500.0,0.00013698,2]
[424824689,1781187041000,-500.0,0.00013698,2]
[424824692,1781187041000,-500.0,0.00013698,2]
[424824684,1781187041000,-500.0,0.00013698,2]
[424824681,1781187041000,-500.0,0.00013698,2]
[424824682,1781187041000,-500.0,0.00013698,2]
[424824683,1781187041000,-500.0,0.00013698,2]
[424824691,1781187041000,-500.0,0.00013698,2]
[424824685,1781187041000,-500.0,0.00013698,2]
[424824687,1781187041000,-500.0,0.00013698,2]
[424824686,1781187041000,-500.0,0.00013698,2]
[424824693,1781187041000,-500.0,0.00013698,2]
[424824698,1781187041000,-500.0,0.00013698,2]
[424824697,1781187041000,-500.0,0.00013698,2]
[424824700,1781187041000,-500.0,0.00013698,2]
[424824701,1781187041000,-500.0,0.00013698,2]
[424824690,1781187041000,-500.0,0.00013698,2]
[424824699,1781187041000,-500.0,0.00013698,2]
[424824713,1781187041000,-551.89013735,0.00013698,2]
[424824703,1781187041000,-500.0,0.00013698,2]
[424824705,1781187041000,-500.0,0.00013698,2]
[424824702,1781187041000,-500.0,0.00013698,2]
[424824706,1781187041000,-500.0,0.00013698,2]
[424824694,1781187041000,-500.0,0.00013698,2]
[424824680,1781187041000,-500.0,0.00013698,2]
[424824653,1781187041000,-540.38,0.00013698,2]
[424824688,1781187041000,-500.0,0.00013698,2]
[424824707,1781187041000,-500.0,0.00013698,2]
[424824652,1781187041000,-500.0,0.00013698,2]
[424824654,1781187041000,-540.38,0.00013698,2]
[424824656,1781187041000,-540.38,0.00013698,2]
[424824655,1781187041000,-540.38,0.00013698,2]
[424824658,1781187041000,-500.0,0.00013698,2]